[Event "*** Titled Tuesday Blitz"]
[Site "Chess.com"]
[Date "2020.10.27"]
[Round "2"]
[White "katchesskat"]
[Black "MattyDPerrine"]
[Result "0-1"]
[WhiteElo "2237"]
[BlackElo "2459"]
[TimeControl "180+1"]
[EndTime "10:16:41 PDT"]
[Termination "MattyDPerrine won on time"]

1. c4 {[%clk 0:00:05.3]} 1... Nf6 {[%clk 0:02:55.6]} 2. e3 {[%clk 0:00:06.2]}
2... c5 {[%clk 0:02:54.3]} 3. a3 {[%clk 0:00:07.1]} 3... d5 {[%clk 0:02:54.2]}
4. Qc2 {[%clk 0:00:08]} 4... d4 {[%clk 0:02:52.7]} 5. d3 {[%clk 0:00:08.9]} 5...
Nc6 {[%clk 0:02:52.6]} 6. e4 {[%clk 0:00:08.6]} 6... g6 {[%clk 0:02:47.4]} 7.
Ne2 {[%clk 0:00:09.1]} 7... e5 {[%clk 0:02:46.8]} 8. Ng3 {[%clk 0:00:09.6]} 8...
h5 {[%clk 0:02:47.2]} 9. Bg5 {[%clk 0:00:09.3]} 9... Bh6 {[%clk 0:02:47.2]} 10.
Bxf6 {[%clk 0:00:08.7]} 10... Qxf6 {[%clk 0:02:47]} 11. Be2 {[%clk 0:00:08.8]}
11... h4 {[%clk 0:02:45]} 12. Nf1 {[%clk 0:00:08.6]} 12... h3 {[%clk 0:02:44.5]}
13. g3 {[%clk 0:00:08.4]} 13... Bd7 {[%clk 0:02:38.8]} 14. Nfd2 {[%clk
0:00:08.4]} 14... Qd6 {[%clk 0:02:37.4]} 15. Qd1 {[%clk 0:00:08.3]} 15... f5
{[%clk 0:02:32.1]} 16. exf5 {[%clk 0:00:07.8]} 16... gxf5 {[%clk 0:02:31]} 17.
Bf3 {[%clk 0:00:08.3]} 17... O-O-O {[%clk 0:02:25.9]} 18. O-O {[%clk 0:00:07.8]}
18... Rde8 {[%clk 0:02:21.9]} 19. b4 {[%clk 0:00:07.9]} 19... b6 {[%clk
0:02:16.6]} 20. bxc5 {[%clk 0:00:06.9]} 20... bxc5 {[%clk 0:02:13.2]} 21. Re1
{[%clk 0:00:07.1]} 21... Nd8 {[%clk 0:02:01]} 22. a4 {[%clk 0:00:05.1]} 22...
Ne6 {[%clk 0:01:52.6]} 23. a5 {[%clk 0:00:04.6]} 23... Ng5 {[%clk 0:01:52.6]}
24. Bd5 {[%clk 0:00:03.9]} 24... Bc6 {[%clk 0:01:50.5]} 25. Qb3 {[%clk
0:00:03.8]} 25... e4 {[%clk 0:01:46.9]} 26. Na3 {[%clk 0:00:03.6]} 26... Re7
{[%clk 0:01:30.5]} 27. Nb5 {[%clk 0:00:03.8]} 27... Qf6 {[%clk 0:01:27.8]} 28.
Bxc6 {[%clk 0:00:04]} 28... Qxc6 {[%clk 0:01:28.7]} 29. Nxa7+ {[%clk 0:00:03.9]}
29... Rxa7 {[%clk 0:01:28.5]} 30. Rab1 {[%clk 0:00:04.1]} 30... Rb7 {[%clk
0:01:21]} 31. Qa3 {[%clk 0:00:03.2]} 31... e3 {[%clk 0:01:16.8]} 0-1

[Event "*** Titled Tuesday Blitz"]
[Site "Chess.com"]
[Date "2020.10.27"]
[Round "2"]
[White "Shahinyan_ChessMood"]
[Black "vanyakuba"]
[Result "1-0"]
[WhiteElo "2751"]
[BlackElo "2501"]
[TimeControl "180+1"]
[EndTime "10:16:42 PDT"]
[Termination "Shahinyan_ChessMood won by resignation"]

1. e4 {[%clk 0:02:57.6]} 1... d5 {[%clk 0:02:59.9]} 2. exd5 {[%clk 0:02:57]}
2... Qxd5 {[%clk 0:03:00.8]} 3. Nf3 {[%clk 0:02:57]} 3... Nf6 {[%clk 0:03:00.4]}
4. d4 {[%clk 0:02:55.9]} 4... Bg4 {[%clk 0:03:00.2]} 5. Be2 {[%clk 0:02:56.5]}
5... Nc6 {[%clk 0:02:59.7]} 6. h3 {[%clk 0:02:57.1]} 6... Bh5 {[%clk 0:02:55.8]}
7. c4 {[%clk 0:02:56.5]} 7... Qd6 {[%clk 0:02:27.6]} 8. O-O {[%clk 0:02:46.7]}
8... e6 {[%clk 0:02:03.3]} 9. Be3 {[%clk 0:02:23.2]} 9... O-O-O {[%clk
0:01:51.2]} 10. Nbd2 {[%clk 0:02:23.7]} 10... Be7 {[%clk 0:01:17.1]} 11. Rb1
{[%clk 0:02:02.7]} 11... Bg6 {[%clk 0:01:14.9]} 12. Rc1 {[%clk 0:01:59.3]} 12...
Nb4 {[%clk 0:01:08.7]} 13. c5 {[%clk 0:01:55]} 13... Qd5 {[%clk 0:00:38.3]} 14.
Qa4 {[%clk 0:01:39.4]} 14... Nc6 {[%clk 0:00:20.7]} 15. b4 {[%clk 0:01:33.9]}
15... Ne4 {[%clk 0:00:17.3]} 16. b5 {[%clk 0:01:11.6]} 16... Nb8 {[%clk
0:00:14.8]} 17. Nxe4 {[%clk 0:01:04.7]} 17... Bxe4 {[%clk 0:00:13.3]} 18. Qxa7
{[%clk 0:01:05.3]} 18... f6 {[%clk 0:00:05.2]} 19. c6 {[%clk 0:01:02.8]} 19...
bxc6 {[%clk 0:00:05.1]} 20. bxc6 {[%clk 0:00:56.3]} 20... Nxc6 {[%clk
0:00:05.4]} 21. Rxc6 {[%clk 0:00:56.9]} 21... Qxc6 {[%clk 0:00:05.3]} 22. Rc1
{[%clk 0:00:57.5]} 22... Qa8 {[%clk 0:00:02.7]} 1-0

[Event "*** Titled Tuesday Blitz"]
[Site "Chess.com"]
[Date "2020.10.27"]
[Round "2"]
[White "GelmanAlexander"]
[Black "nubair1198"]
[Result "1-0"]
[WhiteElo "2578"]
[BlackElo "2838"]
[TimeControl "180+1"]
[EndTime "10:16:48 PDT"]
[Termination "GelmanAlexander won by resignation"]

1. d4 {[%clk 0:03:00.9]} 1... d5 {[%clk 0:02:59.4]} 2. Nc3 {[%clk 0:03:00.5]}
2... Nf6 {[%clk 0:02:57.9]} 3. Bf4 {[%clk 0:03:00.6]} 3... g6 {[%clk 0:02:55.8]}
4. e3 {[%clk 0:03:00.2]} 4... Bg7 {[%clk 0:02:55.7]} 5. h4 {[%clk 0:03:00.5]}
5... h5 {[%clk 0:02:56]} 6. Nf3 {[%clk 0:02:59.4]} 6... O-O {[%clk 0:02:55.3]}
7. Ne5 {[%clk 0:02:58.8]} 7... Nbd7 {[%clk 0:02:52.5]} 8. f3 {[%clk 0:02:52.6]}
8... c5 {[%clk 0:02:47.7]} 9. Qd2 {[%clk 0:02:52]} 9... e6 {[%clk 0:02:14.4]}
10. O-O-O {[%clk 0:02:50.8]} 10... Nxe5 {[%clk 0:02:13.4]} 11. Bxe5 {[%clk
0:02:48.5]} 11... c4 {[%clk 0:01:57.2]} 12. g4 {[%clk 0:02:37.3]} 12... hxg4
{[%clk 0:01:54.2]} 13. h5 {[%clk 0:02:32.3]} 13... Nxh5 {[%clk 0:01:43.3]} 14.
fxg4 {[%clk 0:02:11.2]} 14... Bxe5 {[%clk 0:01:42.7]} 15. dxe5 {[%clk
0:01:36.8]} 15... Ng3 {[%clk 0:01:39.8]} 16. Rh3 {[%clk 0:01:36.9]} 16... Nxf1
{[%clk 0:01:03.3]} 17. Rxf1 {[%clk 0:01:37.8]} 17... Qg5 {[%clk 0:00:57.6]} 18.
Qh2 {[%clk 0:01:19.4]} 18... f5 {[%clk 0:00:57.5]} 19. gxf5 {[%clk 0:01:02.4]}
19... exf5 {[%clk 0:00:22]} 20. Rg1 {[%clk 0:00:59.5]} 20... Qxg1+ {[%clk
0:00:03.2]} 21. Qxg1 {[%clk 0:00:58.9]} 21... Kg7 {[%clk 0:00:04.1]} 22. Qg5
{[%clk 0:00:55.9]} 22... Be6 {[%clk 0:00:02]} 23. Qe7+ {[%clk 0:00:54.7]} 23...
Bf7 {[%clk 0:00:01.7]} 1-0

[Event "*** Titled Tuesday Blitz"]
[Site "Chess.com"]
[Date "2020.10.27"]
[Round "2"]
[White "ajgreen"]
[Black "Kazakov_Konstantin"]
[Result "0-1"]
[WhiteElo "2348"]
[BlackElo "2695"]
[TimeControl "180+1"]
[EndTime "10:16:48 PDT"]
[Termination "Kazakov_Konstantin won by resignation"]

1. e4 {[%clk 0:03:00.9]} 1... d5 {[%clk 0:02:22.6]} 2. exd5 {[%clk 0:03:00.7]}
2... Qxd5 {[%clk 0:02:21.8]} 3. Nc3 {[%clk 0:03:00.6]} 3... Qd6 {[%clk
0:02:21.1]} 4. Nf3 {[%clk 0:02:59.8]} 4... Nf6 {[%clk 0:02:20.3]} 5. Bc4 {[%clk
0:02:59.5]} 5... c6 {[%clk 0:02:20.3]} 6. d3 {[%clk 0:02:59.5]} 6... Bg4 {[%clk
0:02:19.4]} 7. h3 {[%clk 0:02:58.6]} 7... Bh5 {[%clk 0:02:17.9]} 8. Qe2 {[%clk
0:02:58.5]} 8... Nbd7 {[%clk 0:02:15.6]} 9. g4 {[%clk 0:02:50.7]} 9... Bg6
{[%clk 0:02:13]} 10. Nh4 {[%clk 0:02:50]} 10... e6 {[%clk 0:02:11.1]} 11. f4
{[%clk 0:02:47.1]} 11... O-O-O {[%clk 0:02:10.2]} 12. Bd2 {[%clk 0:02:43.1]}
12... Nb6 {[%clk 0:02:07.6]} 13. Bb3 {[%clk 0:02:42.5]} 13... Be7 {[%clk
0:02:04.2]} 14. O-O-O {[%clk 0:02:39.3]} 14... Nfd5 {[%clk 0:02:00.9]} 15. Nxg6
{[%clk 0:02:36.9]} 15... hxg6 {[%clk 0:01:59.5]} 16. Qf3 {[%clk 0:02:31.7]}
16... Nxc3 {[%clk 0:01:40.7]} 17. Bxc3 {[%clk 0:02:32.6]} 17... Bf6 {[%clk
0:01:38.9]} 18. d4 {[%clk 0:02:05.1]} 18... Nd5 {[%clk 0:01:37.1]} 19. Bd2
{[%clk 0:01:51]} 19... Bxd4 {[%clk 0:01:26.9]} 20. f5 {[%clk 0:01:47.6]} 20...
gxf5 {[%clk 0:01:24.1]} 21. gxf5 {[%clk 0:01:47.1]} 21... e5 {[%clk 0:01:14.8]}
22. c3 {[%clk 0:01:39.5]} 22... Bb6 {[%clk 0:01:13.4]} 23. c4 {[%clk 0:01:34]}
23... Nf6 {[%clk 0:01:05.5]} 24. Qg2 {[%clk 0:01:11.8]} 24... Rh7 {[%clk
0:00:55]} 25. Bh6 {[%clk 0:01:01.6]} 25... Qf8 {[%clk 0:00:47.3]} 26. Rxd8+
{[%clk 0:00:58.2]} 26... Qxd8 {[%clk 0:00:38.7]} 27. Bxg7 {[%clk 0:00:49.9]}
27... Qg8 {[%clk 0:00:37.2]} 28. c5 {[%clk 0:00:42.6]} 28... Rxg7 {[%clk
0:00:34.6]} 29. Qc2 {[%clk 0:00:41]} 29... Bc7 {[%clk 0:00:33.6]} 0-1

[Event "*** Titled Tuesday Blitz"]
[Site "Chess.com"]
[Date "2020.10.27"]
[Round "2"]
[White "PlotnikovPavel"]
[Black "Sankalp_Gupta2003"]
[Result "0-1"]
[WhiteElo "2373"]
[BlackElo "2708"]
[TimeControl "180+1"]
[EndTime "10:16:51 PDT"]
[Termination "Sankalp_Gupta2003 won on time"]

1. e4 {[%clk 0:03:00.9]} 1... c6 {[%clk 0:02:58.6]} 2. d4 {[%clk 0:03:00.6]}
2... d5 {[%clk 0:02:59.2]} 3. exd5 {[%clk 0:03:01.5]} 3... cxd5 {[%clk
0:03:00.1]} 4. Bd3 {[%clk 0:03:01]} 4... Nc6 {[%clk 0:03:00.7]} 5. c3 {[%clk
0:03:01.2]} 5... Qc7 {[%clk 0:03:01.1]} 6. Ne2 {[%clk 0:02:58.8]} 6... Nf6
{[%clk 0:02:57.7]} 7. O-O {[%clk 0:02:57.9]} 7... e6 {[%clk 0:02:58.3]} 8. Bf4
{[%clk 0:02:56.7]} 8... Bd6 {[%clk 0:02:58.8]} 9. Bxd6 {[%clk 0:02:56.9]} 9...
Qxd6 {[%clk 0:02:59.7]} 10. Nd2 {[%clk 0:02:56.5]} 10... O-O {[%clk 0:02:58.6]}
11. Ng3 {[%clk 0:02:54.7]} 11... e5 {[%clk 0:02:58.6]} 12. dxe5 {[%clk
0:02:49.2]} 12... Nxe5 {[%clk 0:02:59.5]} 13. Nf3 {[%clk 0:02:23.6]} 13... Bg4
{[%clk 0:02:55]} 14. Be2 {[%clk 0:02:23.4]} 14... Bxf3 {[%clk 0:02:46.7]} 15.
Bxf3 {[%clk 0:02:22.6]} 15... Rad8 {[%clk 0:02:47.6]} 16. Nf5 {[%clk 0:02:16.1]}
16... Qb6 {[%clk 0:02:43.9]} 17. Rb1 {[%clk 0:01:47.3]} 17... Rfe8 {[%clk
0:02:42.5]} 18. Nd4 {[%clk 0:01:46.8]} 18... Nc6 {[%clk 0:02:39.8]} 19. g3
{[%clk 0:01:07.4]} 19... Nxd4 {[%clk 0:02:35]} 20. Qxd4 {[%clk 0:00:59.4]} 20...
Qxd4 {[%clk 0:02:34.7]} 21. cxd4 {[%clk 0:00:56.9]} 21... Ne4 {[%clk 0:02:35.6]}
22. Rfd1 {[%clk 0:00:44.7]} 22... Rc8 {[%clk 0:02:31.6]} 23. Rbc1 {[%clk
0:00:32.3]} 23... f5 {[%clk 0:02:31.4]} 24. Bg2 {[%clk 0:00:28.8]} 24... Kf7
{[%clk 0:02:31.2]} 25. Kf1 {[%clk 0:00:15.8]} 25... Ke6 {[%clk 0:02:23.7]} 26.
Kg1 {[%clk 0:00:10.4]} 26... Kd6 {[%clk 0:02:23.7]} 27. f3 {[%clk 0:00:09.5]}
27... Ng5 {[%clk 0:02:20.9]} 28. Kf2 {[%clk 0:00:09.3]} 28... Rxc1 {[%clk
0:02:18.5]} 29. Rxc1 {[%clk 0:00:09.2]} 29... Ne6 {[%clk 0:02:19.4]} 30. f4
{[%clk 0:00:04.8]} 30... b6 {[%clk 0:02:04.8]} 31. Re1 {[%clk 0:00:04.3]} 31...
Rc8 {[%clk 0:02:00.1]} 32. Re5 {[%clk 0:00:04.3]} 32... Rc2+ {[%clk 0:02:00.5]}
33. Kg1 {[%clk 0:00:04.2]} 33... Rc1+ {[%clk 0:01:58.2]} 34. Kf2 {[%clk
0:00:04.1]} 34... Rc2+ {[%clk 0:01:58.9]} 35. Kg1 {[%clk 0:00:04.5]} 35... Nc7
{[%clk 0:01:59.4]} 36. Rxf5 {[%clk 0:00:04.4]} 36... Rxb2 {[%clk 0:01:59.1]} 37.
Rh5 {[%clk 0:00:04.4]} 37... h6 {[%clk 0:01:58.3]} 38. Rf5 {[%clk 0:00:04]}
38... Rxa2 {[%clk 0:01:58]} 39. Rf7 {[%clk 0:00:04.1]} 39... b5 {[%clk
0:01:58.6]} 40. Rxg7 {[%clk 0:00:04.3]} 40... b4 {[%clk 0:01:59.1]} 41. Rxc7
{[%clk 0:00:01.7]} 41... Kxc7 {[%clk 0:01:58.8]} 42. Bxd5 {[%clk 0:00:02.3]}
42... Ra3 {[%clk 0:01:57.3]} 43. g4 {[%clk 0:00:02.1]} 43... b3 {[%clk
0:01:57.8]} 44. Bxb3 {[%clk 0:00:01.9]} 44... Rxb3 {[%clk 0:01:57.5]} 45. Kg2
{[%clk 0:00:01.7]} 45... a5 {[%clk 0:01:57.4]} 46. h4 {[%clk 0:00:01.9]} 46...
a4 {[%clk 0:01:57.8]} 47. g5 {[%clk 0:00:02.8]} 47... hxg5 {[%clk 0:01:58.7]}
48. fxg5 {[%clk 0:00:03.2]} 48... a3 {[%clk 0:01:59.3]} 49. g6 {[%clk
0:00:03.8]} 49... a2 {[%clk 0:02:00]} 50. g7 {[%clk 0:00:04.4]} 50... Rb8 {[%clk
0:02:00.9]} 0-1

[Event "*** Titled Tuesday Blitz"]
[Site "Chess.com"]
[Date "2020.10.27"]
[Round "2"]
[White "doons21"]
[Black "Aleksey_Sorokin"]
[Result "0-1"]
[WhiteElo "2551"]
[BlackElo "2837"]
[TimeControl "180+1"]
[EndTime "10:17:05 PDT"]
[Termination "Aleksey_Sorokin won by resignation"]

1. e4 {[%clk 0:03:00.9]} 1... c6 {[%clk 0:03:00]} 2. d3 {[%clk 0:02:57.4]} 2...
d5 {[%clk 0:03:00.9]} 3. Nd2 {[%clk 0:02:57.7]} 3... e5 {[%clk 0:03:01.1]} 4.
Ngf3 {[%clk 0:02:58]} 4... Bd6 {[%clk 0:03:01.2]} 5. g3 {[%clk 0:02:58.5]} 5...
Nf6 {[%clk 0:03:01.4]} 6. Bg2 {[%clk 0:02:59]} 6... O-O {[%clk 0:03:01.7]} 7.
O-O {[%clk 0:02:59.5]} 7... Qc7 {[%clk 0:03:01.9]} 8. Re1 {[%clk 0:02:58.5]}
8... Re8 {[%clk 0:03:02]} 9. h3 {[%clk 0:02:58.2]} 9... a5 {[%clk 0:03:00.5]}
10. a4 {[%clk 0:02:57.8]} 10... Nbd7 {[%clk 0:02:56]} 11. Nh4 {[%clk 0:02:57.9]}
11... dxe4 {[%clk 0:02:53.2]} 12. dxe4 {[%clk 0:02:57.6]} 12... Nc5 {[%clk
0:02:53]} 13. b3 {[%clk 0:02:45.7]} 13... b5 {[%clk 0:02:51.9]} 14. Qf3 {[%clk
0:02:41.2]} 14... Ne6 {[%clk 0:02:46.1]} 15. Nf5 {[%clk 0:02:34.6]} 15... Bb4
{[%clk 0:02:40.8]} 16. c3 {[%clk 0:02:26.6]} 16... Bc5 {[%clk 0:02:39.3]} 17.
Nf1 {[%clk 0:01:55.3]} 17... Bb7 {[%clk 0:02:32.1]} 18. g4 {[%clk 0:01:45.3]}
18... Rad8 {[%clk 0:02:24.8]} 19. g5 {[%clk 0:01:45.4]} 19... Nd7 {[%clk
0:02:24.5]} 20. N1g3 {[%clk 0:01:43.7]} 20... Ndf8 {[%clk 0:02:22.5]} 21. Nh5
{[%clk 0:01:39]} 21... Kh8 {[%clk 0:02:20.9]} 22. Bf1 {[%clk 0:00:52.4]} 22...
b4 {[%clk 0:02:18.2]} 23. cxb4 {[%clk 0:00:52.2]} 23... axb4 {[%clk 0:02:13.4]}
24. Bb2 {[%clk 0:00:50.5]} 24... Nd4 {[%clk 0:02:04.1]} 25. Qg3 {[%clk
0:00:36.7]} 25... Nfe6 {[%clk 0:01:56.9]} 26. Nxd4 {[%clk 0:00:32.9]} 26... Bxd4
{[%clk 0:01:52.6]} 27. Rab1 {[%clk 0:00:28.8]} 27... c5 {[%clk 0:01:49.6]} 28.
Bc4 {[%clk 0:00:28.4]} 28... Qe7 {[%clk 0:01:48.1]} 29. Bxe6 {[%clk 0:00:28]}
29... fxe6 {[%clk 0:01:42.7]} 30. h4 {[%clk 0:00:25.6]} 30... Rf8 {[%clk
0:01:41.3]} 31. Re2 {[%clk 0:00:25]} 31... Qf7 {[%clk 0:01:38.1]} 32. Qg4 {[%clk
0:00:25.4]} 32... Qf3 {[%clk 0:01:34.2]} 33. Qxf3 {[%clk 0:00:25]} 33... Rxf3
{[%clk 0:01:35.1]} 34. Bxd4 {[%clk 0:00:25.6]} 34... exd4 {[%clk 0:01:34.3]} 35.
Rc1 {[%clk 0:00:26.1]} 35... Rc3 {[%clk 0:01:33.9]} 36. Rb1 {[%clk 0:00:22.8]}
36... d3 {[%clk 0:01:32.9]} 37. Rd2 {[%clk 0:00:23.3]} 37... Bxe4 {[%clk
0:01:32.6]} 38. Ng3 {[%clk 0:00:24.2]} 38... Bf3 {[%clk 0:01:27.6]} 39. Re1
{[%clk 0:00:23.4]} 39... Rxb3 {[%clk 0:01:25.6]} 40. Re3 {[%clk 0:00:23.9]}
40... Bd5 {[%clk 0:01:22.8]} 41. Rexd3 {[%clk 0:00:23.7]} 41... Rxd3 {[%clk
0:01:22.9]} 42. Rxd3 {[%clk 0:00:24.6]} 42... c4 {[%clk 0:01:23.4]} 43. Rd4
{[%clk 0:00:24.6]} 43... b3 {[%clk 0:01:22.1]} 44. Ne2 {[%clk 0:00:25.1]} 44...
b2 {[%clk 0:01:15.6]} 45. Nc3 {[%clk 0:00:25.3]} 45... Rb8 {[%clk 0:01:15.3]}
46. Rd1 {[%clk 0:00:24.5]} 46... Rb3 {[%clk 0:01:14.3]} 0-1

[Event "*** Titled Tuesday Blitz"]
[Site "Chess.com"]
[Date "2020.10.27"]
[Round "2"]
[White "GregShahade"]
[Black "zmeeed67"]
[Result "1-0"]
[WhiteElo "2656"]
[BlackElo "2346"]
[TimeControl "180+1"]
[EndTime "10:17:06 PDT"]
[Termination "GregShahade won by resignation"]

1. e4 {[%clk 0:03:00.9]} 1... Nc6 {[%clk 0:03:00.1]} 2. Nf3 {[%clk 0:03:00.8]}
2... d6 {[%clk 0:03:00.3]} 3. d4 {[%clk 0:03:00.3]} 3... Nf6 {[%clk 0:03:00.4]}
4. Nc3 {[%clk 0:03:00.6]} 4... Bg4 {[%clk 0:03:00.2]} 5. Be3 {[%clk 0:03:00.3]}
5... a6 {[%clk 0:02:59.8]} 6. d5 {[%clk 0:02:55.3]} 6... Ne5 {[%clk 0:02:59.2]}
7. Be2 {[%clk 0:02:55.6]} 7... Nxf3+ {[%clk 0:02:59.1]} 8. Bxf3 {[%clk
0:02:53.6]} 8... Bxf3 {[%clk 0:02:58.1]} 9. Qxf3 {[%clk 0:02:54.5]} 9... g6
{[%clk 0:02:58.5]} 10. O-O {[%clk 0:02:50.6]} 10... Bg7 {[%clk 0:02:58.4]} 11.
Bd4 {[%clk 0:02:50.7]} 11... O-O {[%clk 0:02:58.1]} 12. Rfe1 {[%clk 0:02:40.4]}
12... Re8 {[%clk 0:02:56.7]} 13. e5 {[%clk 0:02:35.4]} 13... dxe5 {[%clk
0:02:56.2]} 14. Bxe5 {[%clk 0:02:33.7]} 14... Qd7 {[%clk 0:02:49.7]} 15. Rad1
{[%clk 0:02:29.5]} 15... Rad8 {[%clk 0:02:49.1]} 16. h3 {[%clk 0:02:28.1]} 16...
b5 {[%clk 0:02:15.1]} 17. a3 {[%clk 0:02:26.7]} 17... a5 {[%clk 0:02:12.1]} 18.
b4 {[%clk 0:02:13.9]} 18... axb4 {[%clk 0:02:08.8]} 19. axb4 {[%clk 0:02:14.8]}
19... Ra8 {[%clk 0:02:02.6]} 20. Rd3 {[%clk 0:01:50.8]} 20... Ra6 {[%clk
0:01:54.9]} 21. Rde3 {[%clk 0:01:43.7]} 21... Rea8 {[%clk 0:01:50.9]} 22. g4
{[%clk 0:01:39]} 22... h6 {[%clk 0:01:46.2]} 23. Qe2 {[%clk 0:01:33.3]} 23...
Rb6 {[%clk 0:01:20.5]} 24. Bd4 {[%clk 0:01:30]} 24... Nxd5 {[%clk 0:01:02.9]}
25. Nxd5 {[%clk 0:01:27.2]} 25... Bxd4 {[%clk 0:00:51.5]} 26. Nxb6 {[%clk
0:01:26.9]} 26... Bxb6 {[%clk 0:00:50.3]} 27. Rxe7 {[%clk 0:01:26.2]} 27... Qc6
{[%clk 0:00:49.4]} 28. Re8+ {[%clk 0:01:22.2]} 28... Kh7 {[%clk 0:00:37.5]} 29.
Rxa8 {[%clk 0:01:21.7]} 29... Qxa8 {[%clk 0:00:37.4]} 30. Qe4 {[%clk 0:01:18]}
30... Qd8 {[%clk 0:00:34.3]} 31. Qf4 {[%clk 0:01:08]} 31... Kg7 {[%clk
0:00:27.6]} 32. Kg2 {[%clk 0:01:06.3]} 32... Qd5+ {[%clk 0:00:26.8]} 33. Qe4
{[%clk 0:01:06.4]} 33... Qd7 {[%clk 0:00:20.1]} 34. Re2 {[%clk 0:01:06]} 34...
h5 {[%clk 0:00:13.3]} 35. Qe5+ {[%clk 0:01:04.3]} 35... Kh7 {[%clk 0:00:12.9]}
36. gxh5 {[%clk 0:01:04.4]} 36... gxh5 {[%clk 0:00:13.1]} 37. Qxh5+ {[%clk
0:01:03.9]} 37... Kg7 {[%clk 0:00:13.4]} 38. Qg4+ {[%clk 0:01:04.5]} 38... Qxg4+
{[%clk 0:00:12.6]} 39. hxg4 {[%clk 0:01:05.4]} 39... Kg6 {[%clk 0:00:13.3]} 40.
Re5 {[%clk 0:01:04.1]} 1-0

[Event "*** Titled Tuesday Blitz"]
[Site "Chess.com"]
[Date "2020.10.27"]
[Round "2"]
[White "Sibelephant"]
[Black "FloMaster111"]
[Result "1-0"]
[WhiteElo "3096"]
[BlackElo "2639"]
[TimeControl "180+1"]
[EndTime "10:17:09 PDT"]
[Termination "Sibelephant won by resignation"]

1. Nf3 {[%clk 0:03:00]} 1... d5 {[%clk 0:03:00.1]} 2. e3 {[%clk 0:02:59.9]} 2...
g6 {[%clk 0:03:00.2]} 3. c4 {[%clk 0:02:59.9]} 3... c6 {[%clk 0:02:59.5]} 4. Qa4
{[%clk 0:02:59.1]} 4... Bg7 {[%clk 0:02:40.2]} 5. cxd5 {[%clk 0:02:57.9]} 5...
Qxd5 {[%clk 0:02:41]} 6. Nc3 {[%clk 0:02:57.8]} 6... Qd8 {[%clk 0:02:40.9]} 7.
d4 {[%clk 0:02:56.6]} 7... Nf6 {[%clk 0:02:41]} 8. Be2 {[%clk 0:02:56.4]} 8...
O-O {[%clk 0:02:41.2]} 9. O-O {[%clk 0:02:56.6]} 9... Bf5 {[%clk 0:02:32.3]} 10.
Rd1 {[%clk 0:02:30.4]} 10... Nbd7 {[%clk 0:02:32.1]} 11. Bd2 {[%clk 0:02:14]}
11... Nb6 {[%clk 0:02:29.5]} 12. Qb3 {[%clk 0:02:08.6]} 12... Ne4 {[%clk
0:02:25.6]} 13. Be1 {[%clk 0:02:04.7]} 13... a5 {[%clk 0:01:45.3]} 14. Rac1
{[%clk 0:01:59.5]} 14... a4 {[%clk 0:01:42.2]} 15. Qb4 {[%clk 0:01:56.1]} 15...
Nxc3 {[%clk 0:01:36.5]} 16. bxc3 {[%clk 0:01:54.4]} 16... Qc7 {[%clk 0:01:25.2]}
17. c4 {[%clk 0:01:48.5]} 17... a3 {[%clk 0:01:18.9]} 18. Qb3 {[%clk 0:01:38.5]}
18... Ra7 {[%clk 0:00:53.2]} 19. Bb4 {[%clk 0:01:34.2]} 19... Rfa8 {[%clk
0:00:53.8]} 20. h3 {[%clk 0:01:07.8]} 20... Ra4 {[%clk 0:00:49.7]} 21. Bd3
{[%clk 0:00:58.9]} 21... Be6 {[%clk 0:00:35.7]} 22. Ng5 {[%clk 0:00:58.1]} 22...
Bc8 {[%clk 0:00:35.4]} 23. Bc5 {[%clk 0:00:50.5]} 23... R4a6 {[%clk 0:00:30.7]}
24. Bb4 {[%clk 0:00:35.5]} 24... h6 {[%clk 0:00:30.8]} 25. Ne4 {[%clk
0:00:35.6]} 25... e5 {[%clk 0:00:20.1]} 26. Bd6 {[%clk 0:00:34.3]} 26... Qd7
{[%clk 0:00:17]} 27. dxe5 {[%clk 0:00:33.2]} 27... Qe6 {[%clk 0:00:16.8]} 28.
Nc5 {[%clk 0:00:33]} 1-0

[Event "*** Titled Tuesday Blitz"]
[Site "Chess.com"]
[Date "2020.10.27"]
[Round "2"]
[White "northridgehawk"]
[Black "Chessdreamer2020"]
[Result "1/2-1/2"]
[WhiteElo "2252"]
[BlackElo "2461"]
[TimeControl "180+1"]
[EndTime "10:17:09 PDT"]
[Termination "Game drawn by repetition"]

1. e4 {[%clk 0:03:00.9]} 1... d6 {[%clk 0:02:59.1]} 2. d4 {[%clk 0:03:00.8]}
2... Nf6 {[%clk 0:02:59.8]} 3. Nc3 {[%clk 0:03:00.9]} 3... e5 {[%clk 0:03:00.4]}
4. Nge2 {[%clk 0:03:00.3]} 4... c6 {[%clk 0:02:58.7]} 5. f3 {[%clk 0:03:00.2]}
5... b5 {[%clk 0:02:58.8]} 6. Be3 {[%clk 0:02:59.8]} 6... Be7 {[%clk 0:02:59]}
7. Qd2 {[%clk 0:02:59.8]} 7... O-O {[%clk 0:02:56.6]} 8. g4 {[%clk 0:03:00]}
8... Nfd7 {[%clk 0:02:53.9]} 9. Ng3 {[%clk 0:02:55.4]} 9... Nb6 {[%clk
0:02:49.3]} 10. O-O-O {[%clk 0:02:51.8]} 10... Nc4 {[%clk 0:02:37.8]} 11. Bxc4
{[%clk 0:02:51]} 11... bxc4 {[%clk 0:02:38.7]} 12. h4 {[%clk 0:02:51.2]} 12...
Nd7 {[%clk 0:02:28.4]} 13. g5 {[%clk 0:02:49.8]} 13... Rb8 {[%clk 0:02:24.7]}
14. Rdg1 {[%clk 0:02:47.4]} 14... Qb6 {[%clk 0:02:20.7]} 15. Nd1 {[%clk
0:02:44.1]} 15... Qa6 {[%clk 0:02:18.2]} 16. a3 {[%clk 0:02:38.2]} 16... d5
{[%clk 0:02:11]} 17. Qc3 {[%clk 0:02:36.5]} 17... c5 {[%clk 0:02:03.7]} 18. Nf5
{[%clk 0:02:31.4]} 18... Re8 {[%clk 0:01:53.3]} 19. dxe5 {[%clk 0:02:11.1]}
19... d4 {[%clk 0:01:53.3]} 20. Bxd4 {[%clk 0:01:56.7]} 20... cxd4 {[%clk
0:01:53.1]} 21. Qxd4 {[%clk 0:01:53.1]} 21... Bc5 {[%clk 0:01:50.9]} 22. Nh6+
{[%clk 0:01:52.1]} 22... Kf8 {[%clk 0:01:41.8]} 23. Qd5 {[%clk 0:01:48.2]} 23...
Qe6 {[%clk 0:01:34.4]} 24. Re1 {[%clk 0:01:40.2]} 24... gxh6 {[%clk 0:01:30.2]}
25. Qd2 {[%clk 0:01:34.3]} 25... h5 {[%clk 0:01:27.5]} 26. f4 {[%clk 0:01:33.1]}
26... Nxe5 {[%clk 0:01:24.5]} 27. fxe5 {[%clk 0:01:27]} 27... Qxe5 {[%clk
0:01:25.4]} 28. Rhf1 {[%clk 0:01:26.4]} 28... Bxa3 {[%clk 0:01:23.1]} 29. c3
{[%clk 0:01:18]} 29... Be7 {[%clk 0:01:18.2]} 30. Ne3 {[%clk 0:01:15.5]} 30...
Be6 {[%clk 0:01:17.7]} 31. Nd5 {[%clk 0:01:11.9]} 31... Red8 {[%clk 0:01:13.5]}
32. Qf2 {[%clk 0:01:04.8]} 32... Bxd5 {[%clk 0:01:07.9]} 33. exd5 {[%clk
0:01:05.7]} 33... Qxd5 {[%clk 0:01:08.2]} 34. Rxe7 {[%clk 0:00:53.6]} 34... Kxe7
{[%clk 0:01:07.3]} 35. Qf6+ {[%clk 0:00:48.8]} 35... Ke8 {[%clk 0:01:06.5]} 36.
Re1+ {[%clk 0:00:47.2]} 36... Kd7 {[%clk 0:01:06.7]} 37. Rd1 {[%clk 0:00:24.2]}
37... Qxd1+ {[%clk 0:01:05.9]} 38. Kxd1 {[%clk 0:00:25.1]} 38... Rxb2 {[%clk
0:01:05.1]} 39. Qxf7+ {[%clk 0:00:20]} 39... Kc8+ {[%clk 0:01:05.2]} 40. Kc1
{[%clk 0:00:20.2]} 40... Rbd2 {[%clk 0:01:00.3]} 41. Qxc4+ {[%clk 0:00:20.1]}
41... Kb8 {[%clk 0:01:00.7]} 42. Qb5+ {[%clk 0:00:20.3]} 42... Kc8 {[%clk
0:01:00.2]} 43. Qc6+ {[%clk 0:00:20.9]} 43... Kb8 {[%clk 0:01:00.8]} 44. Qb5+
{[%clk 0:00:21.1]} 44... Kc8 {[%clk 0:01:01.1]} 45. Qc6+ {[%clk 0:00:21.6]}
45... Kb8 {[%clk 0:01:01.5]} 46. Qb5+ {[%clk 0:00:21.9]} 1/2-1/2